bitfinex/quotes_SOLUSD_20251201
["timestamp","ask_amount","ask_price","bid_price","bid_amount"]
[1764601117660,13.5709959,126.65,126.62,0.2]
[1764601118167,14.2609959,126.64,126.62,0.2]
[1764601118336,13.5709959,126.64,126.62,0.2]
[1764601120256,14.2609959,126.63,126.62,0.2]
[1764601121167,23.21310239,126.63,126.62,0.2]
[1764601122265,31.11012521,126.63,126.62,0.2]
[1764601122894,22.15801872,126.63,126.62,0.2]
[1764601124360,8.80994492,126.62,126.58,0.2]
[1764601124563,13.5709959,126.59,126.58,0.2]
[1764601124944,14.2609959,126.59,126.58,0.2]
[1764601128358,22.16051402,126.59,126.58,0.2]
[1764601129850,8.58951812,126.59,126.58,0.2]
[1764601130050,13.5709959,126.6,126.58,0.2]
[1764601130270,14.2609959,126.6,126.58,0.2]
[1764601130769,13.5709959,126.59,126.58,0.2]
[1764601131971,21.47051402,126.59,126.58,0.2]
[1764601132179,22.16051402,126.59,126.58,0.2]
[1764601132669,31.11262051,126.59,126.58,0.2]
[1764601133747,8.95210649,126.58,126.57,0.2]
[1764601133954,24.21025464,126.56,126.55,0.2]
[1764601134268,37.78125054,126.56,126.55,0.2]
[1764601134468,38.47125054,126.56,126.55,0.2]
[1764601135379,47.42335703,126.56,126.55,0.2]
[1764601136571,38.73380372,126.56,126.55,0.2]
[1764601136966,33.85236113,126.56,126.55,0.2]
[1764601137163,38.73380372,126.56,126.55,0.2]
[1764601138453,4.88144259,126.56,126.55,0.2]
[1764601139077,5.58144259,126.56,126.55,0.2]
[1764601139368,58.78283323,126.56,126.55,0.2]
[1764601140505,67.49268276,126.56,126.55,0.2]
[1764601140785,67.49268276,126.56,126.55,0.62]
[1764601140999,68.19268276,126.56,126.55,0.2]
[1764601141197,83.80994492,126.55,126.52,0.2]
[1764601141371,22.54339861,126.53,126.52,0.2]
[1764601141783,23.24339861,126.53,126.52,0.2]
[1764601142399,31.14666265,126.53,126.52,0.2]
[1764601146374,26.2342365,126.53,126.52,0.2]
[1764601151005,26.2342365,126.53,126.52,0.2]
[1764601153712,120.99239662,126.53,126.5,0.2]
[1764601153910,17.63097246,126.51,126.5,0.2]
[1764601154084,18.33097246,126.51,126.5,0.2]
[1764601154985,26.23548593,126.51,126.5,0.2]
[1764601157593,117.54434993,126.51,126.5,1e-08]
[1764601158607,8.67886597,126.5,126.49,0.2]
[1764601158809,9.37886597,126.5,126.49,0.2]
[1764601159114,17.2840043,126.5,126.49,0.2]
[1764601160389,11.73198439,126.5,126.49,0.2]
[1764601160710,16.308864,126.47,126.45,0.2]
[1764601160913,11.03448483,126.46,126.45,0.2]
[1764601161092,11.73448483,126.46,126.45,0.2]
[1764601161293,11.03448483,126.46,126.45,0.2]
[1764601165008,11.73448483,126.46,126.45,0.2]
[1764601165515,19.98659132,126.46,126.45,0.2]
[1764601167100,20.67659132,126.46,126.45,0.2]
[1764601169003,9.65210649,126.45,126.39,0.2]
[1764601169207,28.24565498,126.4,126.39,0.2]
[1764601169400,28.38781655,126.4,126.39,0.2]
[1764601169597,28.38781655,126.4,126.34,7.91493581]
[1764601169598,8.95210649,126.39,126.33,0.68]
[1764601169835,3.12684606,126.34,126.33,0.68]
[1764601170014,3.12684606,126.35,126.33,0.68]
[1764601170212,3.12684606,126.34,126.33,0.68]
[1764601170404,3.12684606,126.35,126.33,0.68]
[1764601170916,11.04137975,126.35,126.33,0.68]
[1764601171315,3.12684606,126.36,126.33,0.68]
[1764601171511,3.12684606,126.35,126.33,0.68]
[1764601172820,7.91304412,126.38,126.33,8.59563101]
[1764601173022,3.12684606,126.36,126.34,0.68]
[1764601173622,3.12684606,126.38,126.34,0.68]
[1764601173798,16.86416782,126.39,126.34,0.68]
[1764601173799,3.12684606,126.37,126.34,0.68]
[1764601174001,8.80994492,126.41,126.35,3.12684606]
[1764601174302,8.61563101,126.42,126.33,0.68]
[1764601174303,3.12684606,126.36,126.33,0.68]
[1764601174519,3.12684606,126.35,126.33,0.68]
[1764601175302,7.91393918,126.36,126.33,0.68]
[1764601175614,3.12684606,126.35,126.33,0.68]
[1764601175997,3.12684606,126.34,126.33,0.68]
[1764601176904,11.04156723,126.35,126.33,0.68]
[1764601177112,3.12684606,126.37,126.33,0.68]
[1764601177310,3.12684606,126.36,126.33,0.68]
[1764601178120,3.12684606,126.37,126.33,11.72255732]
[1764601178316,3.12684606,126.36,126.33,0.68]
[1764601179333,3.12684606,126.35,126.33,0.68]
[1764601180007,0.14216157,126.37,126.33,0.68]
[1764601180214,3.12684606,126.36,126.33,0.68]
[1764601180619,0.14216157,126.38,126.33,0.68]
[1764601180830,3.12684606,126.36,126.33,0.68]
[1764601181527,3.12684606,126.35,126.33,0.68]
[1764601181938,0.7,126.37,126.33,0.68]
[1764601182116,3.12684606,126.35,126.33,0.68]
[1764601184041,3.12684606,126.38,126.34,3.12684606]
[1764601184271,3.12684606,126.37,126.33,3.80684606]
[1764601184916,3.12684606,126.37,126.34,0.68]
[1764601185622,3.12684606,126.36,126.34,0.68]
[1764601186213,3.12684606,126.37,126.34,0.68]
[1764601188439,3.82684606,126.38,126.34,3.80684606]
[1764601189243,3.12684606,126.37,126.34,0.68]
[1764601189441,3.12684606,126.37,126.32,3.80684606]
[1764601189631,3.12684606,126.34,126.3,16.308864]
[1764601189839,0.14216157,126.37,126.33,3.12684606]
[1764601189840,3.12684606,126.37,126.33,3.12684606]
[1764601190139,3.82684606,126.38,126.34,3.12684606]
[1764601190537,3.82684606,126.38,126.34,3.80684606]
[1764601190840,3.12684606,126.37,126.34,0.68]
[1764601191039,3.12684606,126.36,126.33,0.68]
[1764601192461,3.12684606,126.34,126.27,0.2]
[1764601192754,3.12684606,126.3,126.27,0.88]
[1764601193160,3.12684606,126.3,126.28,0.68]
[1764601193746,3.12684606,126.31,126.28,0.68]
[1764601194279,3.82684606,126.32,126.28,3.80684606]
[1764601194477,3.12684606,126.31,126.28,0.68]
[1764601194846,0.7,126.32,126.28,0.68]
[1764601195051,3.12684606,126.31,126.28,0.68]
[1764601196077,3.82684606,126.31,126.28,0.68]
[1764601198273,25.83880892,126.34,126.29,3.12684606]
[1764601198445,3.84684606,126.33,126.28,3.78684606]
[1764601198649,3.12684606,126.32,126.28,3.78684606]
[1764601198948,3.12684606,126.31,126.28,0.66]
[1764601199165,25.11880892,126.34,126.29,0.66]
[1764601199470,3.12684606,126.31,126.28,0.66]
[1764601199676,3.12684606,126.32,126.28,0.66]
[1764601200055,3.12684606,126.31,126.28,0.66]
[1764601200254,75.72,126.38,126.3,19.43571006]
[1764601200458,75.72,126.38,126.34,3.12684606]
[1764601200459,3.84684606,126.38,126.34,3.12684606]
[1764601200666,3.12684606,126.41,126.32,0.14216157]
[1764601200867,3.12684606,126.39,126.3,37.62619316]
[1764601201072,19.43571006,126.41,126.36,3.12684606]
[1764601201281,0.72,126.43,126.34,0.14216157]
[1764601201488,7.90523647,126.5,126.42,3.12684606]
[1764601201776,7.90523647,126.5,126.39,16.308864]
[1764601201777,75.0,126.47,126.39,3.12684606]
[1764601201964,3.12684606,126.45,126.41,3.12684606]
[1764601202149,4.13510329,126.49,126.44,3.12684606]
[1764601202352,3.12684606,126.45,126.39,19.43571006]
[1764601202551,3.12684606,126.41,126.37,0.66]
[1764601202986,3.12684606,126.42,126.37,3.78684606]
[1764601203150,3.84684606,126.47,126.41,3.12684606]
[1764601203350,3.12684606,126.45,126.41,3.12684606]
[1764601203571,3.12684606,126.45,126.39,16.308864]
[1764601203572,3.12684606,126.46,126.42,3.78684606]
[1764601203764,3.84684606,126.46,126.42,3.12684606]
[1764601204081,3.84684606,126.46,126.42,0.66]
[1764601204275,3.12684606,126.44,126.4,3.78684606]
[1764601204575,3.84684606,126.45,126.4,3.78684606]
[1764601204778,3.84684606,126.45,126.41,0.66]
[1764601204979,3.12684606,126.43,126.36,8.05599678]
[1764601205181,3.12684606,126.38,126.34,0.66]
[1764601205509,19.43571006,126.41,126.32,7.91640278]
[1764601205659,3.12684606,126.36,126.32,0.66]
[1764601205863,3.12684606,126.37,126.33,16.308864]
[1764601206064,3.12684606,126.39,126.34,3.12684606]
[1764601206266,0.14216157,126.43,126.37,3.12684606]
[1764601206455,0.72,126.47,126.41,4.8888031]
[1764601206777,0.72,126.47,126.36,4.8888031]
[1764601206778,4.8888031,126.42,126.36,21.8576671]
[1764601207076,4.8888031,126.44,126.39,4.8888031]
[1764601207376,4.8888031,126.44,126.37,0.66]
[1764601207377,4.8888031,126.41,126.37,0.66]
[1764601207556,4.8888031,126.42,126.37,5.5488031]
[1764601207758,4.8888031,126.43,126.38,4.8888031]
[1764601208068,4.8888031,126.43,126.38,5.5488031]
[1764601208383,4.8888031,126.39,126.35,0.66]
[1764601208586,4.8888031,126.36,126.33,0.66]
[1764601208758,4.8888031,126.37,126.33,0.66]
[1764601208967,0.72,126.4,126.33,5.5488031]
[1764601209174,4.8888031,126.39,126.34,4.8888031]
[1764601209374,4.8888031,126.39,126.34,5.5488031]
[1764601209580,4.8888031,126.37,126.34,0.66]
[1764601209786,4.8888031,126.38,126.34,0.66]
[1764601209981,4.8888031,126.36,126.34,0.66]
[1764601210161,4.8888031,126.36,126.34,16.968864]
[1764601210362,13.63721841,126.35,126.31,0.66]
[1764601210666,13.63721841,126.34,126.32,0.66]
[1764601210983,13.63721841,126.34,126.29,0.66]
[1764601211185,13.63721841,126.37,126.32,13.63721841]
[1764601211354,13.63721841,126.36,126.31,13.63721841]
[1764601211560,13.63721841,126.34,126.31,16.308864]
[1764601211760,13.63721841,126.34,126.31,16.968864]
[1764601212080,13.63721841,126.33,126.27,13.83721841]
[1764601212272,13.63721841,126.33,126.3,16.308864]
[1764601212783,13.63721841,126.34,126.31,0.66]
[1764601213082,13.63721841,126.34,126.3,0.66]
[1764601213866,13.63721841,126.35,126.3,0.66]
[1764601214287,13.63721841,126.34,126.3,0.66]
[1764601214585,13.63721841,126.33,126.3,0.66]
[1764601214891,13.63721841,126.37,126.31,29.94608241]
[1764601215073,13.63721841,126.37,126.32,13.63721841]
[1764601215270,13.63721841,126.35,126.31,0.66]
[1764601215478,13.63721841,126.39,126.34,13.63721841]
[1764601215665,13.63721841,126.4,126.35,13.63721841]
[1764601215989,13.63721841,126.4,126.36,0.66]
[1764601216177,14.35721841,126.42,126.37,13.63721841]
[1764601216380,13.63721841,126.42,126.36,14.29721841]
[1764601216563,13.63721841,126.4,126.36,16.968864]
[1764601216968,13.63721841,126.4,126.37,16.308864]
[1764601217174,14.35721841,126.4,126.37,16.308864]
[1764601217394,13.63721841,126.41,126.37,16.308864]
[1764601217590,13.63721841,126.38,126.33,16.968864]
[1764601217770,8.95210649,126.41,126.34,13.63721841]
[1764601217771,13.63721841,126.39,126.34,13.63721841]
[1764601217966,14.35721841,126.39,126.34,0.66]
[1764601218170,13.63721841,126.38,126.34,0.66]
[1764601218772,14.35721841,126.38,126.34,0.66]
[1764601218973,0.72,126.38,126.34,0.66]
[1764601219198,16.308864,126.42,126.36,13.63721841]
[1764601219377,16.308864,126.42,126.34,0.66]
[1764601219378,13.63721841,126.38,126.34,0.66]
[1764601219694,8.95210649,126.37,126.32,0.66]
[1764601219993,13.63721841,126.36,126.3,13.63721841]
[1764601220174,13.63721841,126.35,126.29,13.63721841]
[1764601220374,13.63721841,126.34,126.29,14.29721841]
[1764601220688,13.63721841,126.34,126.3,0.66]
[1764601221190,13.63721841,126.33,126.3,16.308864]
[1764601222079,13.63721841,126.35,126.29,13.63721841]
[1764601222279,13.63721841,126.35,126.31,0.66]
[1764601222896,14.35721841,126.36,126.31,14.29721841]
[1764601223080,13.63721841,126.35,126.31,0.66]
[1764601223283,8.95210649,126.38,126.32,0.66]
[1764601223284,13.63721841,126.37,126.32,0.66]
[1764601223476,13.63721841,126.36,126.32,0.66]
[1764601224083,13.63721841,126.38,126.33,13.63721841]
[1764601224382,13.63721841,126.37,126.32,14.29721841]
[1764601224784,13.63721841,126.37,126.33,0.66]
[1764601225500,13.63721841,126.35,126.31,16.968864]
[1764601225791,0.86216157,126.39,126.33,13.63721841]
[1764601225997,13.63721841,126.38,126.32,14.29721841]
[1764601226194,0.72,126.39,126.32,14.29721841]
[1764601226195,13.63721841,126.37,126.32,14.29721841]
[1764601226609,14.34721841,126.37,126.32,14.29721841]
[1764601226793,14.34721841,126.37,126.33,0.67]
[1764601227300,0.71,126.37,126.33,14.30721841]
[1764601227509,13.63721841,126.35,126.31,16.308864]
[1764601227884,14.28721841,126.35,126.31,16.308864]
[1764601228692,0.65,126.34,126.31,16.308864]
[1764601229890,13.63721841,126.36,126.31,16.308864]
[1764601230104,14.28721841,126.36,126.31,16.308864]
[1764601230403,14.28721841,126.35,126.29,0.67]
[1764601230709,14.28721841,126.35,126.29,14.30721841]
[1764601231003,14.28721841,126.35,126.3,13.63721841]
[1764601231420,25.26097049,126.37,126.29,13.63721841]
[1764601231581,14.28721841,126.36,126.31,14.34721841]
[1764601231781,13.63721841,126.34,126.29,13.63721841]
[1764601232206,14.28721841,126.34,126.3,0.71]
[1764601232404,0.65,126.34,126.3,14.34721841]
[1764601232905,0.65,126.33,126.29,13.63721841]
[1764601233211,13.63721841,126.32,126.27,16.508864]
[1764601233508,0.14216157,126.29,126.23,0.71]
[1764601233707,0.65,126.31,126.25,13.63721841]
[1764601233910,16.958864,126.31,126.26,13.63721841]
[1764601234116,13.63721841,126.29,126.24,14.34721841]
[1764601234324,22.5893249,126.28,126.23,13.63721841]
[1764601234805,22.5893249,126.28,126.24,0.71]
[1764601234806,9.45994492,126.28,126.24,0.71]
[1764601235015,13.63721841,126.29,126.24,0.71]
[1764601235223,14.28721841,126.29,126.24,0.71]
[1764601235386,14.28721841,126.29,126.24,14.34721841]
[1764601235587,0.65,126.29,126.24,14.34721841]
[1764601236082,0.65,126.31,126.27,13.63721841]
[1764601236311,0.65,126.31,126.28,13.63721841]
[1764601236513,0.65,126.31,126.27,13.63721841]
[1764601236682,13.63721841,126.32,126.27,13.63721841]
[1764601236883,0.65,126.31,126.27,14.34721841]
[1764601237084,14.28721841,126.31,126.27,0.71]
[1764601237786,0.65,126.31,126.27,14.34721841]
[1764601238007,14.28721841,126.33,126.28,13.63721841]
[1764601238205,0.65,126.33,126.29,13.63721841]
[1764601238910,14.28721841,126.35,126.3,14.34721841]
[1764601239118,14.28721841,126.35,126.28,7.91891035]
[1764601239119,13.63721841,126.32,126.28,7.91891035]
[1764601239311,13.63721841,126.33,126.28,13.63721841]
[1764601239493,14.28721841,126.33,126.28,13.63721841]
[1764601239690,14.28721841,126.33,126.28,14.34721841]
[1764601239908,16.958864,126.32,126.27,3.54]
[1764601240103,16.958864,126.32,126.27,17.17721841]
[1764601240290,0.65,126.31,126.23,67.33527252]
[1764601240489,14.28721841,126.31,126.26,13.63721841]
[1764601241116,14.28721841,126.31,126.26,14.34721841]
[1764601241793,14.28721841,126.31,126.27,7.91953749]
[1764601242197,22.20443562,126.31,126.27,7.91953749]
[1764601242409,14.28721841,126.3,126.26,7.92003412]
[1764601242713,13.63721841,126.29,126.26,7.92003412]
[1764601242907,14.28721841,126.29,126.24,25.80824459]
[1764601243216,13.63721841,126.29,126.24,25.80824459]
[1764601243419,27.70979103,126.31,126.27,13.63721841]
[1764601243614,27.70979103,126.31,126.26,13.63721841]
[1764601243994,28.35979103,126.31,126.26,22.2669555]
[1764601244321,28.35979103,126.31,126.27,14.34721841]
[1764601246020,41.99700944,126.31,126.27,0.71]
[1764601246228,28.35979103,126.31,126.27,14.34721841]
[1764601246523,7.91721721,126.31,126.28,21.55612876]
[1764601246713,7.91721721,126.31,126.28,22.26612876]
[1764601246906,7.91721721,126.31,126.29,0.71]
[1764601247106,7.91721721,126.31,126.28,22.26612876]
[1764601247307,7.91721721,126.31,126.28,8.62891035]
[1764601247506,7.91640278,126.32,126.28,22.26612876]
[1764601247709,8.56640278,126.32,126.28,7.91891035]
[1764601247929,14.28721841,126.31,126.28,7.91891035]
[1764601248227,0.65,126.31,126.28,7.91891035]
[1764601248424,22.20425376,126.31,126.27,7.91953749]
[1764601248614,0.65,126.3,126.27,7.91953749]
[1764601249712,7.91703535,126.31,126.27,8.62953749]
[1764601249910,8.56703535,126.31,126.27,8.62953749]
[1764601250630,11.45580446,126.33,126.28,14.34721841]
[1764601250833,0.65,126.34,126.3,13.63721841]
[1764601251139,17.82721841,126.37,126.32,13.63721841]
[1764601251429,17.17721841,126.38,126.33,13.63721841]
[1764601251950,13.63721841,126.36,126.31,13.63721841]
[1764601252113,13.63721841,126.33,126.29,0.71]
[1764601252430,13.63721841,126.33,126.28,14.34721841]
[1764601252617,8.56568601,126.34,126.29,7.91828331]
[1764601252825,22.20290442,126.34,126.29,22.26550172]
[1764601253041,24.87217766,126.37,126.32,13.63721841]
[1764601253214,38.50939607,126.37,126.32,13.63721841]
[1764601253414,0.65,126.36,126.32,14.34721841]
[1764601253930,13.63721841,126.33,126.27,0.71]
[1764601254109,13.63721841,126.34,126.29,13.63721841]
[1764601254315,0.65,126.37,126.33,13.63721841]
[1764601254520,0.65,126.39,126.36,13.63721841]
[1764601254721,7.91099955,126.41,126.37,13.63721841]
[1764601254917,8.56099955,126.41,126.37,13.63721841]
[1764601255122,8.56099955,126.41,126.38,13.63721841]
[1764601255123,0.65,126.41,126.38,13.63721841]
[1764601255330,25.73682552,126.43,126.38,13.63721841]
[1764601255528,0.65,126.42,126.38,13.63721841]
[1764601255931,14.31721841,126.44,126.4,13.63721841]
[1764601256136,0.68,126.44,126.4,13.63721841]
[1764601256535,22.22622994,126.44,126.4,13.63721841]
[1764601256724,22.22622994,126.44,126.4,21.54825102]
[1764601257840,0.68,126.44,126.4,21.54825102]
[1764601258071,8.58896225,126.44,126.4,21.54825102]
[1764601258349,0.68,126.47,126.43,13.63721841]
[1764601258556,0.68,126.46,126.43,13.63721841]
[1764601259339,13.63721841,126.45,126.4,21.54825102]
[1764601259535,13.63721841,126.45,126.41,13.63721841]
[1764601259833,14.31721841,126.45,126.42,7.9101408]
[1764601260445,20.44314365,126.5,126.44,13.63721841]
[1764601260645,20.44314365,126.5,126.46,13.63721841]
[1764601260646,4.22,126.5,126.46,13.63721841]
[1764601260848,0.68,126.5,126.47,13.63721841]
[1764601261026,13.63721841,126.51,126.47,13.63721841]
[1764601261226,13.63721841,126.49,126.45,29.94608241]
[1764601261437,13.63721841,126.46,126.41,7.91076655]
[1764601261648,13.63721841,126.45,126.41,22.25798496]
[1764601261846,11.44686617,126.48,126.44,13.63721841]
[1764601262229,12.12686617,126.48,126.44,14.34721841]
[1764601262442,14.31721841,126.47,126.43,21.54673355]
[1764601262650,14.31721841,126.47,126.43,7.90951514]
[1764601262834,13.63721841,126.45,126.39,7.91201835]
[1764601263033,13.63721841,126.44,126.4,13.63721841]
[1764601263229,13.63721841,126.44,126.39,22.25923676]
[1764601263438,0.68,126.44,126.4,14.34721841]
[1764601264342,0.68,126.44,126.4,22.25822609]
[1764601264542,14.31721841,126.44,126.4,7.91100768]
[1764601264742,0.68,126.44,126.4,22.25822609]
[1764601264947,0.68,126.44,126.41,13.63721841]
[1764601265137,8.58758425,126.47,126.43,13.63721841]
[1764601265336,16.308864,126.49,126.45,13.63721841]
[1764601265337,7.90628101,126.49,126.45,13.63721841]
[1764601265648,3.54,126.48,126.45,13.63721841]
[1764601265959,22.22349942,126.49,126.44,14.34721841]
[1764601266258,22.22349942,126.49,126.45,13.63721841]
[1764601266436,22.22349942,126.49,126.45,7.90782692]
[1764601266437,14.31721841,126.48,126.45,7.90782692]
[1764601266761,13.63721841,126.46,126.41,19.77601166]
[1764601266962,13.63721841,126.42,126.38,7.9126444]
[1764601267139,16.308864,126.43,126.36,7.91340921]
[1764601267140,13.63721841,126.39,126.36,7.91340921]
[1764601267338,13.63721841,126.4,126.36,7.91340921]
[1764601267535,13.63721841,126.38,126.35,7.91439379]
[1764601267744,3.54,126.41,126.36,0.71]
[1764601267943,17.17721841,126.41,126.37,13.63721841]
[1764601268165,17.85721841,126.41,126.36,14.34721841]
[1764601268336,4.22,126.41,126.37,7.91327055]
[1764601268657,8.69412231,126.4,126.37,7.91327055]
[1764601268867,9.37412231,126.41,126.37,7.91327055]
[1764601269027,0.68,126.41,126.37,17.31739286]
[1764601269230,0.68,126.43,126.4,8.69412231]
[1764601269654,0.68,126.43,126.38,0.71]
[1764601269856,8.69412231,126.42,126.37,16.60739286]
[1764601270061,9.37412231,126.43,126.39,8.69412231]
[1764601270362,8.69412231,126.42,126.38,16.60642935]
[1764601270571,8.69412231,126.42,126.38,36.38804036]
[1764601270749,8.69412231,126.42,126.38,37.09804036]
[1764601270939,17.28368939,126.43,126.38,37.09804036]
[1764601271736,9.37412231,126.43,126.38,17.31642935]
[1764601272054,9.37412231,126.42,126.37,7.91312048]
[1764601272252,9.37412231,126.42,126.37,16.60724279]
[1764601272253,17.28463283,126.42,126.37,16.60724279]
[1764601272454,9.37412231,126.42,126.37,37.10041917]
[1764601272653,20.82330132,126.44,126.39,8.69412231]
[1764601272956,20.1428314,126.45,126.4,8.69412231]
[1764601273161,20.8228314,126.45,126.4,8.69412231]
[1764601273462,20.8228314,126.45,126.4,9.40412231]
[1764601273960,9.37412231,126.44,126.41,7.91076655]
[1764601274275,9.37412231,126.44,126.4,16.60526172]
[1764601274441,0.68,126.43,126.4,7.91113941]
[1764601274758,9.37412231,126.43,126.39,7.91188325]
[1764601275261,12.91412231,126.42,126.37,9.40412231]
[1764601275580,9.37412231,126.41,126.37,8.69412231]
[1764601275737,9.37412231,126.41,126.37,7.91300685]
[1764601276059,0.68,126.4,126.37,7.91300685]
[1764601276260,19.848864,126.42,126.38,9.40412231]
[1764601276562,29.22298631,126.42,126.38,8.69412231]
[1764601276754,29.22298631,126.42,126.37,17.31712916]
[1764601276970,9.37412231,126.41,126.37,16.60712916]
[1764601277153,9.37412231,126.41,126.37,7.91300685]
[1764601277359,9.37412231,126.4,126.35,25.71298631]
[1764601277871,7.91201835,126.39,126.36,7.91380802]
[1764601278070,8.59201835,126.39,126.36,7.91380802]
[1764601278253,7.91160847,126.4,126.36,17.31793033]
[1764601278454,12.91412231,126.39,126.35,7.91433206]
[1764601278654,8.69412231,126.37,126.33,16.60960673]
[1764601279191,0.68,126.38,126.34,8.69412231]
[1764601279475,9.37412231,126.38,126.34,8.69412231]
[1764601279875,8.69412231,126.37,126.33,27.70492477]
[1764601280053,8.69412231,126.37,126.33,36.39904708]
[1764601280054,9.37412231,126.37,126.33,36.39904708]
[1764601280555,9.37412231,126.37,126.33,37.10904708]
[1764601280750,0.68,126.37,126.33,37.10904708]
[1764601281051,8.69412231,126.35,126.31,27.70874921]
[1764601281250,8.69412231,126.34,126.31,7.91649772]
[1764601281661,0.68,126.33,126.31,7.91649772]
[1764601282066,0.68,126.33,126.27,8.69412231]
[1764601282067,8.69412231,126.32,126.27,8.69412231]
[1764601282279,4.22,126.33,126.28,8.69412231]
[1764601282280,12.91412231,126.33,126.28,8.69412231]
[1764601282575,0.68,126.33,126.29,8.69412231]
[1764601282758,12.23412231,126.34,126.29,9.40412231]
[1764601282959,12.91412231,126.34,126.29,9.40412231]
[1764601283163,7.91626025,126.33,126.29,17.32188791]
[1764601283974,8.59626025,126.33,126.29,17.32188791]
[1764601284176,17.29038256,126.33,126.29,17.32188791]
[1764601284556,9.37412231,126.32,126.27,31.25654494]
[1764601284760,9.37412231,126.32,126.27,39.95066725]
[1764601284964,0.68,126.31,126.27,40.66066725]
[1764601285468,9.37412231,126.31,126.25,7.92079207]
[1764601285676,12.23412231,126.3,126.25,16.61491438]
[1764601285872,12.91412231,126.3,126.26,8.69412231]
[1764601286087,12.89412231,126.3,126.25,17.32491438]
[1764601286277,20.8123105,126.3,126.25,17.32491438]
[1764601286687,20.1523105,126.3,126.25,17.32491438]
[1764601286993,7.91688006,126.32,126.26,0.71]
[1764601287182,39.57220249,126.36,126.26,0.71]
[1764601287183,8.69412231,126.35,126.3,8.69412231]
[1764601287384,12.89412231,126.35,126.3,8.69412231]
[1764601287588,9.35412231,126.35,126.3,9.40412231]
[1764601287767,12.23412231,126.36,126.31,9.40412231]
[1764601287966,12.89412231,126.36,126.31,9.40412231]
[1764601288168,0.66,126.35,126.31,9.40412231]
[1764601288398,0.66,126.35,126.31,16.61066135]
[1764601288595,20.14848095,126.36,126.32,0.71]
[1764601288764,20.80848095,126.36,126.32,0.71]
[1764601288965,17.26848095,126.36,126.32,8.69412231]
[1764601289166,8.57435864,126.36,126.32,8.69412231]
[1764601289968,7.91435864,126.36,126.32,9.40412231]
[1764601290311,33.57618528,126.38,126.33,9.40412231]
[1764601290597,7.91319897,126.38,126.34,8.69412231]
[1764601290969,7.91319897,126.38,126.34,9.40412231]
[1764601291167,39.54273351,126.45,126.37,8.69412231]
[1764601291364,8.69412231,126.43,126.39,8.69412231]
[1764601291598,8.69412231,126.43,126.38,8.69412231]
[1764601291800,9.35412231,126.43,126.38,8.69412231]
[1764601292027,9.35412231,126.45,126.41,7.91076655]
[1764601292325,8.69412231,126.46,126.41,36.38180524]
[1764601292502,16.60205796,126.46,126.41,36.38180524]
[1764601292698,17.26238644,126.45,126.4,8.69412231]
[1764601293123,8.56826413,126.45,126.41,8.69412231]
[1764601293421,8.56826413,126.45,126.42,8.69412231]
[1764601293422,0.66,126.45,126.42,8.69412231]
[1764601293811,13.00994492,126.48,126.42,16.308864]
[1764601294119,16.6018313,126.46,126.41,16.60488886]
[1764601294324,8.69412231,126.45,126.41,7.91076655]
[1764601294530,12.89412231,126.45,126.4,16.60533219]
[1764601295032,0.66,126.44,126.41,8.69412231]
[1764601295235,0.66,126.44,126.4,37.0938132]
[1764601295530,0.66,126.44,126.4,16.60533219]
[1764601296115,0.66,126.44,126.38,8.69412231]
[1764601296116,16.60363745,126.43,126.38,8.69412231]
[1764601296435,8.69412231,126.42,126.37,16.60739286]
[1764601296803,8.69412231,126.42,126.36,40.34267095]
[1764601296804,9.41412231,126.41,126.36,20.1479036]
[1764601297112,8.69412231,126.39,126.35,7.9142735]
[1764601297510,0.72,126.39,126.35,16.60839581]
[1764601298028,8.63091668,126.41,126.37,7.91327055]
[1764601298243,16.308864,126.42,126.37,16.60739286]
[1764601298396,20.568864,126.42,126.38,8.69412231]
[1764601298901,0.72,126.42,126.38,8.69412231]
[1764601299328,9.41412231,126.42,126.38,8.69412231]
[1764601299525,9.41412231,126.42,126.37,8.69412231]
[1764601299740,9.41412231,126.41,126.36,20.14780229]
[1764601300043,9.41412231,126.41,126.36,39.93254429]
[1764601300333,9.41412231,126.41,126.36,40.62254429]
[1764601301636,9.41412231,126.4,126.36,31.23842198]
[1764601301847,8.69412231,126.37,126.34,24.22354068]
[1764601302011,0.72,126.36,126.34,7.91467668]
[1764601302336,0.72,126.36,126.33,27.70400706]
[1764601302641,8.69412231,126.37,126.33,27.70400706]
[1764601302842,9.41412231,126.37,126.33,28.39400706]